fUST/lending_fUST_20250621
["ID","MTS","AMOUNT","RATE_DAILY","PERIOD"]
[366777681,1750443039474,-460.0,0.00020924,2]
[366777682,1750443039484,-460.0,0.00020924,2]
[366777683,1750443039493,-460.0,0.00020924,2]
[366777684,1750443039503,-498.01987018,0.00020925,2]
[366777685,1750443039513,-460.0,0.00020925,2]
[366777686,1750443039526,-833.33,0.00020925,2]
[366777687,1750443039537,-160.0,0.00020925,2]
[366777688,1750443039547,-460.0,0.00020925,2]
[366777689,1750443039557,-460.0,0.00020925,2]
[366777690,1750443039568,-460.0,0.00020925,2]
[366777691,1750443039579,-538.0,0.00020925,2]
[366777692,1750443039589,-460.0,0.00020925,2]
[366777693,1750443039599,-460.0,0.0002093,2]
[366777694,1750443039610,-151.0,0.0002099,2]
[366777695,1750443039620,-151.0,0.0002099,2]
[366777696,1750443039630,-151.0,0.0002099,2]
[366777697,1750443039641,-151.0,0.0002099,2]
[366777698,1750443039651,-151.0,0.0002099,2]
[366777700,1750443039661,-481.346143,0.0002099,2]
[366777701,1750443039670,-481.346143,0.0002099,2]
[366777703,1750443039680,-209.73513295,0.00021084,2]
[366777705,1750443039690,-167.61359135,0.00021194,2]
[366777707,1750443039700,-460.0,0.00021197,2]
[366777709,1750443039709,-460.0,0.00021197,2]
[366777711,1750443039719,-460.0,0.00021197,2]
[366777713,1750443039728,-5017.1,0.00021197,2]
[366777715,1750443039738,-460.0,0.00021197,2]
[366777717,1750443039747,-619.05,0.00021197,2]
[366777719,1750443039757,-460.0,0.00021197,2]
[366777721,1750443039767,-460.0,0.00021198,2]
[366777723,1750443039777,-460.0,0.00021198,2]
[366777725,1750443039787,-460.0,0.00021199,2]
[366777727,1750443039796,-833.33,0.00021199,2]
[366777729,1750443039806,-460.0,0.00021199,2]
[366777731,1750443039816,-460.0,0.00021199,2]
[366777733,1750443039827,-460.0,0.00021199,2]
[366777735,1750443039837,-538.0,0.00021199,2]
[366777739,1750443039860,-460.0,0.00021199,2]
[366777741,1750443039870,-1489.52317063,0.000212,4]
[366777743,1750443039880,-1489.52317034,0.000212,4]
[366777745,1750443039890,-460.0,0.00021204,2]
[366777747,1750443039901,-1489.52317034,0.00021245,4]
[366777749,1750443039911,-1031.53,0.000213,2]
[366777751,1750443039922,-1359.053774,0.000214,2]
[366777753,1750443039932,-1489.52317034,0.00021417,5]
[366777755,1750443039942,-460.0,0.00021471,2]
[366777757,1750443039952,-460.0,0.00021471,2]
[366777759,1750443039962,-460.0,0.00021471,2]
[366777761,1750443039973,-5017.1,0.00021471,2]
[366777763,1750443039982,-460.0,0.00021471,2]
[366777765,1750443039992,-619.05,0.00021471,2]
[366777767,1750443040002,-460.0,0.00021471,2]
[366777769,1750443040012,-460.0,0.00021472,2]
[366777771,1750443040022,-460.0,0.00021472,2]
[366777773,1750443040031,-460.0,0.00021473,2]
[366777775,1750443040041,-833.33,0.00021473,2]
[366777777,1750443040051,-338.12,0.00021473,2]
[366777779,1750443040061,-460.0,0.00021473,2]
[366777781,1750443040072,-460.0,0.00021473,2]
[366777783,1750443040081,-538.0,0.00021473,2]
[366777785,1750443040092,-460.0,0.00021473,2]
[366777787,1750443040101,-460.0,0.00021478,2]
[366777789,1750443040111,-1605.15495,0.00021483,4]
[366777791,1750443040121,-800.0,0.00021512,2]
[366777793,1750443040131,-1254.532248,0.00021512,2]
[366777795,1750443040141,-1254.532248,0.00021512,2]
[366777797,1750443040154,-800.0,0.00021544,2]
[366777799,1750443040164,-151.0,0.00021544,2]
[366777801,1750443040173,-151.0,0.00021544,2]
[366777803,1750443040183,-178.210712,0.00021566,6]
[366777805,1750443040192,-800.0,0.00021571,2]
[366777807,1750443040202,-1489.52317034,0.0002159,5]
[366777809,1750443040211,-151.0,0.00021597,2]
[366777811,1750443040221,-151.0,0.00021597,2]
[366777813,1750443040231,-214.427779,0.00021597,2]
[366777815,1750443040241,-710.428301,0.00021597,2]
[366777817,1750443040252,-710.428301,0.00021597,2]
[366777819,1750443040262,-420.0,0.000216,2]
[366777821,1750443040272,-151.0,0.00021702,2]
[366777823,1750443040282,-151.0,0.00021702,2]
[366777825,1750443040293,-151.0,0.00021702,2]
[366777827,1750443040303,-151.0,0.00021702,2]
[366777829,1750443040313,-151.0,0.00021702,2]
[366777831,1750443040323,-311.49508893,0.00021704,2]
[366777834,1750443040341,-1368.50491107,0.00021704,2]
[366777836,1750443040351,-460.0,0.00021745,2]
[366777838,1750443040361,-460.0,0.00021745,2]
[366777840,1750443040371,-460.0,0.00021745,2]
[366777842,1750443040382,-5017.1,0.00021745,2]
[366777845,1750443040392,-460.0,0.00021745,2]
[366777847,1750443040402,-619.05,0.00021745,2]
[366777849,1750443040412,-460.0,0.00021745,2]
[366777851,1750443040422,-460.0,0.00021746,2]
[366777853,1750443040432,-151.0,0.00021746,2]
[366777855,1750443040442,-151.0,0.00021746,2]
[366777857,1750443040456,-460.0,0.00021746,2]
[366777859,1750443040466,-460.0,0.00021747,2]
[366777861,1750443040477,-833.33,0.00021747,2]
[366777863,1750443040486,-151.0,0.00021747,2]
[366777865,1750443040496,-151.0,0.00021747,2]
[366777867,1750443040506,-151.0,0.00021747,2]
[366777869,1750443040517,-460.0,0.00021747,2]
[366777871,1750443040532,-538.0,0.00021747,2]
[366777873,1750443040542,-460.0,0.00021747,2]
[366777875,1750443040553,-151.0,0.00021748,2]
[366777878,1750443040563,-177.624883,0.00021748,2]
[366777880,1750443040575,-177.624883,0.00021748,2]
[366777881,1750443040586,-151.0,0.00021748,2]
[366777883,1750443040596,-151.0,0.00021748,2]
[366777885,1750443040606,-166.882114,0.00021748,2]
[366777888,1750443040616,-166.882114,0.00021748,2]
[366777890,1750443040626,-151.0,0.00021748,2]
[366777892,1750443040636,-151.0,0.00021748,2]
[366777894,1750443040646,-151.0,0.00021748,2]
[366777895,1750443040656,-151.0,0.00021748,2]
[366777897,1750443040666,-151.0,0.00021748,2]
[366777900,1750443040675,-389.898316,0.00021748,2]
[366777902,1750443040685,-389.898316,0.00021748,2]
[366777904,1750443040695,-273.59523,0.00021748,2]
[366777905,1750443040706,-151.790296,0.00021748,2]
[366777908,1750443040716,-273.59523,0.00021748,2]
[366777910,1750443040726,-330.22425,0.00021748,2]
[366777911,1750443040735,-330.22425,0.00021748,2]
[366777913,1750443040746,-204.542834,0.00021748,2]
[366777916,1750443040756,-204.542834,0.00021748,2]
[366777918,1750443040765,-481.346143,0.00021749,2]
[366777919,1750443040775,-481.346143,0.00021749,2]
[366777921,1750443040786,-151.0,0.0002175,2]
[366777923,1750443040795,-153.530725,0.0002175,2]
[366777925,1750443040805,-151.0,0.0002175,2]
[366777927,1750443040815,-151.0,0.0002175,2]
[366777929,1750443040825,-151.0,0.0002175,2]
[366777931,1750443040836,-151.64582,0.0002175,2]
[366777933,1750443040846,-216.20041,0.0002175,2]
[366777935,1750443040856,-216.20041,0.0002175,2]
[366777937,1750443040866,-460.0,0.00021752,2]
[366777939,1750443040876,-1489.52317034,0.00021762,5]
[366777941,1750443040886,-183.26551424,0.00021841,2]
[366777943,1750443040896,-194.5076377,0.00021856,2]
[366777945,1750443040907,-463.0,0.00021863,2]
[366777947,1750443040917,-209.73513295,0.0002189,2]
[366777949,1750443040928,-499.58,0.000219,2]
[366777951,1750443040939,-151.0,0.000219,2]
[366777953,1750443040949,-151.0,0.000219,2]
[366777955,1750443040959,-481.346143,0.000219,2]
[366777957,1750443040970,-481.346143,0.000219,2]
[366777959,1750443040980,-1000.0,0.000219,2]
[366777961,1750443040990,-155.0,0.000219,2]
[366777963,1750443040999,-500.0,0.00021917,2]
[366777965,1750443041010,-151.0,0.00021918,2]
[366777967,1750443041021,-1489.52317034,0.00021934,6]
[366777969,1750443041030,-500.0,0.00021947,2]
[366777971,1750443041040,-500.0,0.00021947,2]
[366777973,1750443041049,-500.0,0.00021947,2]
[366777975,1750443041059,-500.0,0.00021947,2]
[366777977,1750443041068,-406.0,0.00021952,2]
[366777979,1750443041081,-320.594912,0.00021964,2]
[366777981,1750443041091,-354.1047926,0.00021964,2]
[366777983,1750443041101,-287.1928411,0.00021964,2]
[366777985,1750443041111,-574.4346525,0.00021964,2]
[366777987,1750443041122,-574.4346525,0.00021964,2]
[366777988,1750443041131,-570.1412059,0.00021964,2]
[366777989,1750443041141,-153.504504,0.00021964,7]
[366777990,1750443041151,-500.0,0.00021978,2]
[366777991,1750443041160,-500.0,0.00021978,2]
[366777992,1750443041170,-151.0,0.0002199,7]
[366777994,1750443041180,-151.0,0.0002199,7]
[366777996,1750443041190,-151.0,0.0002199,7]
[366777998,1750443041200,-151.0,0.0002199,7]
[366778000,1750443041210,-390.071015,0.0002199,7]
[366778002,1750443041221,-390.071015,0.0002199,7]
[366778004,1750443041230,-151.0,0.0002199,7]
[366778006,1750443041240,-151.0,0.0002199,7]
[366778009,1750443041250,-151.0,0.0002199,7]
[366778010,1750443041260,-224.626753,0.0002199,7]
[366778012,1750443041271,-151.0,0.0002199,7]
[366778014,1750443041280,-213.33507,0.0002199,7]
[366778016,1750443041290,-151.0,0.0002199,7]
[366778018,1750443041300,-151.0,0.0002199,7]
[366778020,1750443041310,-153.545801,0.0002199,7]
[366778022,1750443041319,-151.0,0.0002199,7]
[366778024,1750443041330,-151.0,0.0002199,7]
[366778026,1750443041340,-151.0,0.0002199,7]
[366778028,1750443041349,-151.0,0.0002199,7]
[366778030,1750443041359,-389.898316,0.0002199,7]
[366778032,1750443041369,-154.417606,0.0002199,7]
[366778034,1750443041378,-389.898316,0.0002199,7]
[366778036,1750443041388,-273.59523,0.0002199,7]
[366778038,1750443041398,-273.59523,0.0002199,7]
[366778039,1750443041408,-151.0,0.0002199,7]
[366778041,1750443041419,-151.0,0.0002199,7]
[366778042,1750443041428,-151.0,0.0002199,7]
[366778044,1750443041439,-151.0,0.0002199,7]
[366778045,1750443041449,-151.0,0.0002199,7]
[366778047,1750443041459,-204.542834,0.0002199,7]
[366778049,1750443041469,-204.542834,0.0002199,7]
[366778051,1750443041478,-1254.532248,0.0002199,7]
[366778053,1750443041488,-1254.532248,0.0002199,7]
[366778055,1750443041498,-22556.06585766,0.0002199,2]
[366778057,1750443041508,-1000.0,0.00022,2]
[366778058,1750443041519,-151.0,0.00022,7]
[366778060,1750443041533,-710.428301,0.00022,7]
[366778062,1750443041543,-710.428301,0.00022,7]
[366778064,1750443041552,-176.0,0.00022,2]
[366778066,1750443041563,-500.0,0.00022017,2]
[366778068,1750443041573,-500.0,0.00022017,2]
[366778070,1750443041582,-500.0,0.00022017,2]
[366778072,1750443041592,-500.0,0.00022017,2]
[366778074,1750443041603,-399.08065305,0.00022017,2]
[366778076,1750443041614,-500.0,0.00022017,2]
[366778078,1750443041623,-500.0,0.00022017,2]
[366778080,1750443041633,-500.0,0.00022017,2]
[366778082,1750443041643,-500.83542297,0.00022017,2]
[366778084,1750443041653,-500.0,0.00022017,2]
[366778086,1750443041663,-500.0,0.00022017,2]
[366778088,1750443041673,-500.0,0.00022017,2]
[366778090,1750443041683,-500.0,0.00022017,2]
[366778092,1750443041693,-500.50120501,0.00022017,2]
[366778094,1750443041703,-500.0,0.00022017,2]
[366778096,1750443041713,-547.01834822,0.00022017,2]
[366778098,1750443041725,-500.0,0.00022017,2]
[366778100,1750443041736,-500.0,0.00022017,2]
[366778102,1750443041746,-600.0,0.00022017,2]
[366778104,1750443041757,-530.13547856,0.00022017,2]
[366778106,1750443041767,-534.11854391,0.00022017,2]
[366778108,1750443041777,-500.0,0.00022017,2]
[366778110,1750443041787,-500.0,0.00022017,2]
[366778112,1750443041796,-501.77174903,0.00022017,2]
[366778114,1750443041807,-460.0,0.00022019,2]
[366778131,1750443041971,-460.0,0.00022019,2]
[366778151,1750443042189,-460.0,0.00022019,2]
[366778153,1750443042200,-5017.1,0.00022019,2]
[366778155,1750443042211,-460.0,0.00022019,2]
[366778158,1750443042223,-619.05,0.00022019,2]
[366778161,1750443042234,-460.0,0.00022019,2]
[366778164,1750443042245,-460.0,0.0002202,2]
[366778167,1750443042255,-460.0,0.0002202,2]
[366778170,1750443042266,-460.0,0.00022021,2]
[366778173,1750443042276,-833.33,0.00022021,2]
[366778176,1750443042286,-286.89,0.00022021,2]
[366778179,1750443042296,-538.0,0.00022021,2]
[366778181,1750443042306,-460.0,0.00022021,2]
[366778182,1750443042316,-1254.532248,0.00022022,7]
[366778184,1750443042329,-1254.532248,0.00022022,7]
[366778186,1750443042339,-151.0,0.00022023,7]
[366778188,1750443042350,-151.0,0.00022023,7]
[366778191,1750443042361,-177.624883,0.00022024,7]
[366778193,1750443042372,-177.624883,0.00022024,7]
[366778195,1750443042382,-151.0,0.00022024,7]
[366778198,1750443042392,-151.0,0.00022024,7]
[366778201,1750443042402,-166.882114,0.00022024,7]
[366778205,1750443042412,-166.882114,0.00022024,7]
[366778209,1750443042423,-274.0,0.00022055,2]
[366778213,1750443042433,-1489.52317034,0.00022107,6]
[366778216,1750443042443,-215.0738,0.00022203,2]
[366778219,1750443042453,-151.0,0.00022249,7]
[366778222,1750443042463,-151.0,0.00022255,7]
[366778224,1750443042474,-151.0,0.00022255,7]
[366778226,1750443042484,-151.0,0.00022255,7]
[366778228,1750443042494,-216.20041,0.00022255,7]
[366778230,1750443042503,-216.20041,0.00022255,7]
[366778232,1750443042514,-330.22425,0.00022255,7]
[366778234,1750443042525,-330.22425,0.00022255,7]
[366778236,1750443042536,-150.0,0.00022255,2]
[366778237,1750443042546,-150.0,0.00022255,2]
[366778240,1750443042556,-2160.0,0.00022255,2]
[366778243,1750443042567,-628.0,0.00022255,2]
[366778245,1750443042579,-846.08887863,0.0002226,7]
[366778248,1750443042590,-151.0,0.00022279,7]
[366778250,1750443042601,-151.0,0.00022279,7]
[366778252,1750443042612,-1489.52317034,0.00022279,6]
[366778253,1750443042622,-460.0,0.00022293,2]
[366778254,1750443042632,-460.0,0.00022293,2]
[366778255,1750443042642,-460.0,0.00022293,2]
[366778256,1750443042652,-5017.1,0.00022293,2]
[366778257,1750443042662,-460.0,0.00022293,2]
[366778258,1750443042671,-619.05,0.00022293,2]
[366778259,1750443042682,-460.0,0.00022293,2]
[366778260,1750443042692,-566.96877265,0.00022294,2]
[366778261,1750443042701,-460.0,0.00022295,2]
[366778262,1750443042711,-833.33,0.00022295,2]
[366778263,1750443042721,-160.0,0.00022295,2]
[366778264,1750443042732,-538.0,0.00022295,2]
[366778265,1750443042742,-151.0,0.00022297,7]
[366778266,1750443042751,-151.0,0.00022297,7]
[366778267,1750443042762,-151.0,0.00022297,7]
[366778268,1750443042772,-481.346143,0.00022297,7]
[366778269,1750443042782,-481.346143,0.00022297,7]
[366778270,1750443042791,-151.0,0.000223,7]
[366778271,1750443042801,-151.0,0.000223,7]
[366778272,1750443042811,-151.0,0.000223,7]
[366778273,1750443042820,-782.42,0.00022311,5]
[366778275,1750443042834,-151.0,0.00022328,7]
[366778277,1750443042843,-710.428301,0.00022328,7]
[366778279,1750443042853,-710.428301,0.00022328,7]
[366778281,1750443042863,-151.0,0.00022328,7]
[366778283,1750443042873,-500.0,0.00022329,2]
[366778284,1750443042883,-500.0,0.00022343,2]
[366778286,1750443042892,-500.99072211,0.00022343,2]
[366778288,1750443042903,-500.0,0.00022343,2]
[366778290,1750443042914,-498.04715103,0.00022343,2]
[366778292,1750443042925,-500.0,0.00022348,2]
[366778294,1750443042936,-515.28372943,0.00022348,2]
[366778296,1750443042947,-500.0,0.00022348,2]
[366778298,1750443042958,-500.0,0.00022348,2]
[366778300,1750443042968,-178.210712,0.00022368,4]
[366778302,1750443042979,-782.42,0.00022411,6]
[366778304,1750443042989,-214.258,0.0002242,2]
[366778306,1750443042999,-155.0,0.00022448,2]
[366778308,1750443043010,-1489.52317034,0.00022452,7]
[366778310,1750443043019,-248.227502,0.00022452,7]
[366778312,1750443043028,-151.0,0.00022452,7]
[366778314,1750443043038,-151.0,0.00022452,7]
[366778316,1750443043048,-389.898316,0.00022452,7]
[366778318,1750443043058,-389.898316,0.00022452,7]
[366778320,1750443043068,-273.59523,0.00022452,7]
[366778321,1750443043083,-273.59523,0.00022452,7]
[366778323,1750443043092,-151.0,0.00022452,7]
[366778325,1750443043102,-151.0,0.00022452,7]
[366778327,1750443043112,-200.214501,0.00022452,7]
[366778329,1750443043121,-204.542834,0.00022452,7]
[366778331,1750443043131,-204.542834,0.00022452,7]
[366778333,1750443043142,-153.0,0.00022456,2]
[366778335,1750443043153,-153.0,0.00022456,2]
[366778337,1750443043163,-153.0,0.00022456,2]
[366778339,1750443043172,-153.0,0.00022456,2]
[366778341,1750443043182,-153.0,0.00022456,2]
[366778343,1750443043192,-306.0,0.00022456,2]
[366778345,1750443043202,-500.0,0.00022465,2]
[366778347,1750443043213,-1000.0,0.00022495,2]
[366778349,1750443043223,-697.74599437,0.00022495,2]
[366778352,1750443043233,-1000.0,0.00022495,2]
[366778353,1750443043244,-414.88074374,0.00022495,2]
[366778367,1750443043395,-460.0,0.00021198,2]
[366778368,1750443043405,-460.0,0.00021472,2]
[366778369,1750443043415,-159.19033853,0.00021746,2]
[366778370,1750443043427,-300.80966147,0.00021746,2]
[366778371,1750443043436,-460.0,0.0002202,2]
[366778372,1750443043446,-460.0,0.00022294,2]
[366778373,1750443043456,-585.11925626,0.00022495,2]
[366778374,1750443043466,-1031.53,0.000225,7]
[366778375,1750443043476,-782.42,0.00022511,5]
[366778376,1750443043486,-1000.0,0.00022526,2]
[366778377,1750443043495,-1000.0,0.00022526,2]
[366778378,1750443043506,-551.71866101,0.00022565,2]
[366778379,1750443043515,-1005.34427697,0.00022565,2]
[366778380,1750443043527,-501.14966039,0.00022565,2]
[366778381,1750443043537,-1132.55334313,0.00022565,2]
[366778382,1750443043547,-1000.0,0.00022565,2]
[366778383,1750443043557,-1000.0,0.00022565,2]
[366778384,1750443043568,-505.011779,0.00022565,2]
[366778385,1750443043582,-1000.0,0.00022565,2]
[366778386,1750443043591,-1000.0,0.00022565,2]
[366778387,1750443043601,-1000.0,0.00022565,2]
[366778388,1750443043610,-1000.0,0.00022565,2]
[366778389,1750443043619,-1200.0,0.00022565,2]
[366778390,1750443043629,-1000.0,0.00022565,2]
[366778391,1750443043638,-1000.0,0.00022565,2]
[366778392,1750443043648,-324.99,0.00022567,2]
[366778394,1750443043658,-460.0,0.00022567,2]
[366778396,1750443043668,-460.0,0.00022567,2]
[366778398,1750443043678,-5017.1,0.00022567,2]
[366778400,1750443043688,-619.05,0.00022567,2]
[366778402,1750443043698,-460.0,0.00022567,2]
[366778404,1750443043707,-460.0,0.00022567,2]
[366778406,1750443043717,-1254.532248,0.00022568,7]
[366778408,1750443043726,-1254.532248,0.00022568,7]
[366778410,1750443043735,-460.0,0.00022568,2]
[366778412,1750443043745,-460.0,0.00022569,2]
[366778413,1750443043755,-833.33,0.00022569,2]
[366778415,1750443043766,-538.0,0.00022569,2]
[366778417,1750443043775,-177.624883,0.00022573,7]
[366778419,1750443043785,-177.624883,0.00022573,7]
[366778421,1750443043794,-151.0,0.00022573,7]
[366778423,1750443043804,-151.0,0.00022573,7]
[366778425,1750443043814,-166.882114,0.00022573,7]
[366778427,1750443043826,-166.882114,0.00022573,7]
[366778429,1750443043836,-151.0,0.00022573,7]
[366778431,1750443043845,-151.0,0.0002259,7]
[366778433,1750443043855,-30587.4936832,0.000226,2]
[366778440,1750443043911,-4548.12,0.000226,2]
[366778442,1750443043922,-461.26789152,0.000226,2]
[366778907,1750443394064,305.022127,0.00013699,2]
[366778909,1750443578626,850.01026891,0.00025039,60]
[366778910,1750443659586,-253.81798241,0.0001966,2]
[366778911,1750443663101,-226.67330297,0.00019659,2]
[366778912,1750443728566,-280.98251109,0.00019659,2]
[366778913,1750443783444,-151.16903462,0.00019659,2]
[366778915,1750443904665,-259.0,0.00019659,2]
[366778918,1750443925038,-41.0,0.00019659,2]
[366778919,1750443925062,-200.0,0.00019659,2]
[366778923,1750443965398,-155.0,0.0001958,2]
[366778924,1750444023014,-160.0,0.00019579,2]
[366778926,1750444085726,-165.39116841,0.00019579,2]
[366778927,1750444090555,-151.0,0.00019383,2]
[366778940,1750444144041,-14.39116841,0.00019383,2]
[366778941,1750444144066,-285.60883159,0.00019579,2]
[366778942,1750444153005,-14.39116841,0.00019579,2]
[366778943,1750444153032,-137.12170858,0.00019579,2]
[366778947,1750444175876,-164.15926043,0.00019579,2]
[366778949,1750444182153,-158.71903099,0.00019579,2]
[366778950,1750444182179,-28.92074383,0.00019579,2]
[366778951,1750444184542,-167.31909194,0.00019579,2]
[366778952,1750444201918,-150.30261681,0.00019579,2]
[366779026,1750444232159,-598.26396507,0.00019558,2]
[366779028,1750444232168,-278.20613858,0.00019578,2]
[366779029,1750444232180,-21.79386142,0.00019578,2]
[366779031,1750444232190,-241.0,0.00019578,2]
[366779033,1750444232201,-1200.0,0.00019578,2]
[366779035,1750444232210,-113.45754742,0.00019579,2]
[366779037,1750444232221,-2926.64,0.00019579,2]
[366779038,1750444232231,-460.0,0.00019579,2]
[366779040,1750444232241,-460.0,0.00019579,2]
[366779042,1750444232251,-460.0,0.00019579,2]
[366779043,1750444232260,-460.0,0.00019579,2]
[366779045,1750444232270,-460.0,0.00019579,2]
[366779047,1750444232278,-32591.18201759,0.0001958,2]
[366779049,1750444232288,-300.0,0.00019658,2]
[366779050,1750444232298,-631.66032,0.00019659,2]
[366779052,1750444232308,-460.0,0.00019659,2]
[366779054,1750444232317,-4780.1427004,0.00019777,2]
[366779056,1750444232327,-460.0,0.00019853,2]
[366779057,1750444232337,-460.0,0.00019853,2]
[366779059,1750444232347,-2130.12355327,0.00019853,2]
[366779061,1750444232359,-796.51644673,0.00019853,2]
[366779063,1750444232369,-460.0,0.00019853,2]
[366779064,1750444232379,-460.0,0.00019853,2]
[366779066,1750444232388,-460.0,0.00019853,2]
[366779068,1750444232398,-460.0,0.00019979,2]
[366779070,1750444232408,-486.11,0.00019979,2]
[366779072,1750444232417,-460.0,0.00019979,2]
[366779073,1750444232427,-6244.0690667,0.0001998,2]
[366779398,1750444237941,-460.0,0.00019933,2]
[366779399,1750444237952,-2373.78708917,0.0001998,2]
[366779425,1750444240227,-460.00000001,0.0001998,2]
[366779441,1750444244111,-280.98251109,0.00019579,2]
[366779442,1750444244121,-698.38535048,0.0001998,2]
[366779443,1750444244133,-15123.75849364,0.0001998,2]
[366779444,1750444244143,-460.0,0.00020127,2]
[366779445,1750444244153,-460.0,0.00020127,2]
[366779446,1750444244163,-2926.64,0.00020127,2]
[366779447,1750444244173,-460.0,0.00020127,2]
[366779448,1750444244182,-460.0,0.00020127,2]
[366779450,1750444244192,-460.0,0.00020127,2]
[366779452,1750444244202,-305.022127,0.00020187,2]
[366779454,1750444244212,-460.0,0.00020207,2]
[366779456,1750444244223,-486.11,0.00020253,2]
[366779458,1750444244232,-460.0,0.00020253,2]
[366779474,1750444244383,-598.26396505,0.00020327,2]
[366779476,1750444244394,-460.0,0.00020401,2]
[366779478,1750444244404,-460.0,0.00020401,2]
[366779479,1750444244414,-2926.64,0.00020401,2]
[366779481,1750444244424,-460.0,0.00020401,2]
[366779482,1750444244434,-460.0,0.00020401,2]
[366779483,1750444244444,-460.0,0.00020401,2]
[366779484,1750444244453,-460.0,0.00020481,2]
[366779485,1750444244465,-486.11,0.00020527,2]
[366779486,1750444244474,-460.0,0.00020527,2]
[366779487,1750444244484,-171.244,0.00020532,2]
[366779488,1750444244495,-846.08887863,0.000206,2]
[366779489,1750444244505,-291.53238078,0.00020635,2]
[366779490,1750444244514,-410.65354999,0.00020635,2]
[366779491,1750444244526,-89.34645001,0.00020635,2]
[366779492,1750444244537,-500.0,0.00020635,2]
[366779493,1750444244547,-500.0,0.00020635,2]
[366779494,1750444244557,-500.0,0.00020635,2]
[366779495,1750444244567,-500.0,0.00020635,2]
[366779496,1750444244577,-500.0,0.00020635,2]
[366779497,1750444244588,-500.0,0.00020635,2]
[366779498,1750444244598,-500.0,0.00020635,2]
[366779499,1750444244609,-500.0,0.00020635,2]
[366779500,1750444244619,-500.0,0.00020635,2]
[366779501,1750444244629,-500.0,0.00020635,2]
[366779502,1750444244639,-500.0,0.00020635,2]
[366779503,1750444244649,-500.0,0.00020635,2]
[366779504,1750444244659,-500.0,0.00020635,2]
[366779505,1750444244669,-500.0,0.00020635,2]
[366779506,1750444244679,-500.0,0.00020635,2]
[366779507,1750444244688,-500.0,0.00020635,2]
[366779508,1750444244698,-301.83863175,0.00020635,2]
[366779509,1750444244708,-500.0,0.00020635,2]
[366779510,1750444244717,-500.0,0.00020635,2]
[366779511,1750444244728,-1328.06,0.00020636,10]
[366779512,1750444244737,-2532.53,0.00020636,10]
[366779513,1750444244747,-424.85694595,0.00020639,2]
[366779514,1750444244757,-230.06456406,0.0002064,2]
[366779515,1750444244767,-160.0,0.0002064,2]
[366779516,1750444244777,-836.27303475,0.0002064,2]
[366779517,1750444244787,-160.0,0.0002064,2]
[366779518,1750444244797,-151.0,0.00020648,2]
[366779519,1750444244806,-183.26551424,0.00020655,2]
[366779520,1750444244816,-8826.26486074,0.0002066,2]
[366779599,1750444318352,444.941836,0.000189,2]
[366779601,1750444347319,296.62789066,0.000189,2]
[366779602,1750444412479,286.061188,0.00013699,2]
[366779604,1750444516142,-150.0,0.00019153,2]
[366779608,1750444585989,24900.0,0.00019001,2]
[366779609,1750444592793,202.87630159,0.00018992,2]
[366779610,1750444619983,197.75192711,0.000189,2]
[366779611,1750444648983,150.0,0.000189,2]